Cogmind - Beta 13 @@@ ROGUE MODE // 2024.04.01 @ 15:13:00 Player: Devilhunter10 Result: Destroyed by as-09517 with Assembled Heavy Rifle Performance ------------- Evolutions (0) 0 Regions Visited (2) 400 Robots Destroyed (10) 50 Value Destroyed (171) 171 Prototype IDs (0) 0 Alien Tech Used (0) 0 Bonus (-188) -188 TOTAL SCORE: 433 Bonus ------- Friendly Fire -188 Cogmind --------- Core Integrity 0/250 Matter 260/300 Energy 250/250 System Corruption 0% Temperature Cool (0) Movement Walking (190) Ox1 Location -10/Mines Parts ------- > --- POWER (1) -------- Ion Engine > --- PROPULSION (2) --- Improved Aluminum Leg Improved Aluminum Leg > --- UTILITY (2) ------ Large Storage Unit ECM Suite > --- WEAPON (2) ------- Grenade Launcher Flail > --- INVENTORY (15) --- Makeshift Power Source Improved Aluminum Leg Improved Aluminum Leg Carbon-fiber Leg Compact Wheel ECM Suite Core Shielding Flail Peak State ------------ > --- POWER ------------ Ion Engine > --- PROPULSION ------- Improved Aluminum Leg Improved Aluminum Leg > --- UTILITY ---------- Large Storage Unit ECM Suite > --- WEAPON ----------- Flail Flail > --- INVENTORY -------- Improved Aluminum Leg Improved Aluminum Leg Compact Wheel ECM Suite Grenade Launcher [Rating: 11] Favorites ----------- Power Ion Engine Engine Ion Engine Propulsion Improved Aluminum Leg Leg Improved Aluminum Leg Wheel Compact Wheel Utility Large Storage Unit Device ECM Suite Storage Large Storage Unit Weapon Light Assault Rifle Ballistic Gun Light Assault Rifle Launcher Grenade Launcher Impact Weapon Flail Build | -11 -10 -10 ------- Run | Yrd Mat Min Slots Evolved . | . . . Power . | . . . Propulsion . | . . . Utility . | . . . Weapon . | . . . Parts Attached 20 | 5 14 1 Power 2 | 1 1 . Engine 2 | 1 1 . Core . | . . . Reactor . | . . . Propulsion 6 | 2 4 . Treads . | . . . Leg 2 | . 2 . Wheel 4 | 2 2 . Hover . | . . . Flight . | . . . Utility 5 | 1 4 . Device 3 | . 3 . Storage 2 | 1 1 . Processor . | . . . Hackware . | . . . Protection . | . . . Artifact . | . . . Weapon 7 | 1 5 1 Energy Gun . | . . . Energy Cannon . | . . . Ballistic Gun 3 | 1 2 . Ballistic Cannon . | . . . Launcher 2 | . 1 1 Special Weapon . | . . . Impact Weapon 2 | . 2 . Slashing Weapon . | . . . Piercing Weapon . | . . . Special Melee Weapon . | . . . Unidentified Prototypes . | . . . Parts Lost 10 | . 10 . Power 1 | . 1 . Propulsion 4 | . 4 . Utility 2 | . 2 . Weapon 3 | . 3 . Highest Loss Streak 6 | . 6 . To Critical Strikes . | . . . Average Slot Usage (%) 82 | . 78 100 Engine 13 | . 13 14 Leg 17 | . 15 28 Wheel 3 | . 4 . Device 6 | . 4 14 Storage 13 | . 13 14 Ballistic Gun 10 | . 13 . Launcher 7 | . 8 3 Impact Weapon 7 | . 3 24 Naked Turns . | . . . Heaviest Build 32 | 9 31 32 Greatest Support 32 | 32 32 26 Greatest Overweight (x) 9 | . 9 1 Average Overweight (x) 1 | . 1 1 Largest Inventory Capacity 15 | 8 15 15 Average Capacity 13 | 7 13 15 Most Carried 8 | 5 6 8 Average Carried 3 | 1 3 6 Final Capacity 15 | 8 15 15 Final Carried 8 | 2 5 8 Class Distribution -------------------- 100% | Mutant Dominant Class ---------------- Mutant | -10/Materials Mutant | -10/Mines Resources | -11 -10 -10 ----------- Run | Yrd Mat Min Matter Collected 474 | 213 177 84 Remotely 50 | . 50 . Salvage Created 225 | . 164 61 Parts 17 | . 14 3 Haulers Intercepted . | . . . Recyclers Shooed . | . . . Parts Field Recycled . | . . . Retrieved Matter . | . . . Parts Self-Destructed . | . . . Prevented . | . . . Kills | -11 -10 -10 ------- Run | Yrd Mat Min Combat Hostiles Destroyed 11 | . 7 4 Melee 1 | . . 1 Guns 4 | . 4 . AOE 6 | . 3 3 Classes Destroyed 5 | . 3 2 Watcher 1 | . 1 . Swarmer 4 | . 4 . Grunt 3 | . 3 . Zionite 1 | . . 1 Assembled 4 | . . 4 Thug 1 | . . 1 Best Kill Streak 6 | . 6 4 Combat Bots Only 5 | . 5 4 Max Kills in Single Turn 3 | . 3 3 Gunslinging . | . . . Exploded 2 | . 2 1 Melee 1 | . . 1 Uniques/NPCs Destroyed . | . . . Combat | -11 -10 -10 -------- Run | Yrd Mat Min Hostile Shots Fired 122 | . 109 13 Missed 41 | . 33 8 Damage Taken 898 | . 813 85 Core 254 | . 234 20 Absorbed by Shields . | . . . Core Remaining (%) 100 | 100 . . Volleys Fired 44 | . 38 6 Largest 2 | . 2 1 Hottest 50 | . 50 30 Shots Fired 64 | . 58 6 Gun 55 | . 55 . Cannon . | . . . Launcher 9 | . 3 6 Special . | . . . Kinetic 55 | . 55 . Thermal . | . . . Explosive 9 | . 3 6 Electromagnetic . | . . . Robot Hit Streak 15 | . 15 2 Robot Miss Streak 3 | . 3 1 Penetration Max . | . . . Secondary Targets 1 | . 1 . Max Gunslinging Chain 1 | . 1 . Shots Hit Robots 43 | . 40 3 Core Hits 29 | . 18 11 Critical Kills . | . . . Critical Parts Destroyed 1 | . 1 . Critical Strikes 1 | . 1 . Destroy 1 | . 1 . Melee Attacks 2 | . . 2 Impact 2 | . . 2 Slashing . | . . . Piercing . | . . . Sneak Attacks . | . . . Combat Hostiles . | . . . Follow-up Attacks . | . . . Damage Inflicted 874 | . 570 304 Guns 321 | . 321 . Cannons . | . . . Explosions 502 | . 249 253 Melee 51 | . . 51 Ramming . | . . . Kinetic 321 | . 321 . Thermal . | . . . Explosive 502 | . 249 253 Electromagnetic . | . . . Impact 51 | . . 51 Slashing . | . . . Piercing . | . . . Highest Corruption . | . . . Average Corruption . | . . . Corruption Purged . | . . . Corruption Blocked . | . . . Overload Shots . | . . . Overflow Damage 19 | . . 19 Projectiles . | . . . Explosions . | . . . Melee 19 | . . 19 Knockbacks . | . . . Impact . | . . . Kinetic . | . . . Secondary . | . . . Self-Inflicted Damage 16 | . . 16 Shots 1 | . . 1 Rammed . | . . . Targets Rammed . | . . . Kicked . | . . . Crushed . | . . . Highest Temperature 48 | . 48 . Average Temperature 20 | . 20 . Received Heat Transfer 243 | . 243 . Siege Activations . | . . . Robots Corrupted . | . . . Combat Hostiles . | . . . Parts Fried . | . . . Impact Corruptions 1 | . . 1 Robots Melted . | . . . Combat Hostiles . | . . . Parts Melted . | . . . Heat Transferred . | . . . Parts Sabotaged . | . . . Parts Stolen . | . . . Parts Stripped . | . . . Power Chain Reactions . | . . . Alert | -11 -10 -10 ------- Run | Yrd Mat Min Peak Influence 134 | . 134 23 Initial . | . . . Average 27 | . 34 4 Maximum Alert Level . | . . . Low Security (%) 100 | 100 100 100 Level 1 . | . . . Level 2 . | . . . Level 3 . | . . . Level 4 . | . . . Level 5 . | . . . High Security . | . . . Max Security . | . . . Squads Dispatched 2 | . 2 . Investigation 2 | . 2 . Extermination . | . . . Reinforcement . | . . . Assault . | . . . Garrison . | . . . Intercept . | . . . Searches Triggered . | . . . Construction Impeded . | . . . Haulers Reinforced . | . . . Active Scanning Responses . | . . . Cargo Convoy Interrupts . | . . . Stealth | -11 -10 -10 --------- Run | Yrd Mat Min Distress Signals 3 | . 3 . Communications Jammed . | . . . Distress Signals . | . . . Times Spotted 28 | . 23 5 Peak Tracking Total 7 | . 7 4 Tactical Retreats 1 | . 1 . Traps | -11 -10 -10 ------- Run | Yrd Mat Min Traps Triggered 3 | . 3 . Indirectly . | . . . Trap Hack Attempts . | . . . Triggered . | . . . Disarmed . | . . . Reprogrammed . | . . . Reused . | . . . Traps Extracted . | . . . Installed . | . . . Triggered . | . . . Machines | -11 -10 -10 ---------- Run | Yrd Mat Min Machines Disabled . | . . . Max in Single Turn . | . . . Machines Repaired . | . . . Machines Dismantled . | . . . Machines Sabotaged . | . . . Overloaded Fab Kills . | . . . Hacking | -11 -10 -10 --------- Run | Yrd Mat Min Machines Accessed 6 | . 6 . Terminals 5 | . 5 . Fabricators . | . . . Repair Stations . | . . . Recycling Units 1 | . 1 . Scanalyzers . | . . . Garrison Access . | . . . Total Hacks 12 | . 12 . Successful 8 | . 8 . Failed 4 | . 4 . Catastrophic . | . . . Database Lockouts . | . . . Manual 1 | . 1 . Terminals 10 | . 10 . Fabricators . | . . . Repair Stations . | . . . Recycling Units 2 | . 2 . Scanalyzers . | . . . Garrison Access . | . . . Terminal Hacks 6 | . 6 . Unreport Threat 1 | . 1 . Dispatch Records 2 | . 2 . Security Status 1 | . 1 . Zone Layout 2 | . 2 . Fabricator Hacks . | . . . Repair Station Hacks . | . . . Recycling Unit Hacks 2 | . 2 . Report Inventory 1 | . 1 . Retrieve Components 1 | . 1 . Scanalyzer . | . . . Garrison Access Hacks . | . . . Unauthorized Hacks . | . . . Terminals . | . . . Fabricators . | . . . Repair Stations . | . . . Recycling Units . | . . . Scanalyzers . | . . . Garrison Access . | . . . Data Cores Recovered . | . . . Used . | . . . Hacking Detections 1 | . 1 . Full Trace Events 1 | . 1 . Feedback Events . | . . . Feedback Blocked . | . . . Robot Schematics Acquired . | . . . Robots Built . | . . . Authchips . | . . . Time . | . . . Total Robot Build Rating . | . . . Part Schematics Acquired . | . . . Parts Built . | . . . Authchips . | . . . Time . | . . . Total Part Build Rating . | . . . Parts Repaired . | . . . Time . | . . . Parts Recycled . | . . . Recycled Matter . | . . . Retrieved Matter . | . . . Retrieved Components 3 | . 3 . Parts Scanalyzed . | . . . Part Schematics Acquired . | . . . Parts Damaged . | . . . Bothacking | -11 -10 -10 ------------ Run | Yrd Mat Min Used RIF Installer . | . . . Robots Hacked . | . . . Non-combat . | . . . Combat . | . . . Robot Hacks Applied . | . . . Relay Couplers Released . | . . . Fabnet Peak Effective % . | . . . Robots Rewired . | . . . Allies Hacked . | . . . Hacks Repelled . | . . . Allies | -11 -10 -10 -------- Run | Yrd Mat Min Total Allies 2 | . . 2 Largest Group 2 | . . 2 Highest-Rated Group 42 | . . 42 Highest-Rated Ally 31 | . . 31 Total Orders . | . . . Ally Attacks 2 | . . 2 Total Damage . | . . . Kills . | . . . Allies Corrupted . | . . . Allies Melted 1 | . . 1 Intel | -11 -10 -10 ------- Run | Yrd Mat Min Robot Analysis Total . | . . . Derelict Logs Recovered . | . . . Drone Launches . | . . . Drone Recoveries . | . . . Exploration | -11 -10 -10 ------------- Run | Yrd Mat Min Turns Passed 1299 | 52 1007 240 Spaces Moved 610 | 47 449 114 Core 67 | 13 54 . Treads . | . . . Legs 393 | . 279 114 Wheels 150 | 34 116 . Hover . | . . . Flight . | . . . Fastest Speed 50 | 50 100 190 Average Speed 186 | 86 196 190 Slowest Speed 500 | 100 500 190 Overloaded Moves . | . . . Propulsion Burnouts . | . . . Robots Hopped . | . . . Cave-ins Triggered . | . . . Exploration Rate (%) 33 | 3 66 31 Regions Visited 2 Branch Regions 1 Pre-discovered Areas . | . . . Known Exits Taken . | . . . Unknown Exits Taken 2 | 1 1 . Scrap Searched 1 | . . 1 Spaces Dug . | . . . Terrain Destroyed 47 | . 14 33 Melee . | . . . Projectile . | . . . AOE 47 | . 14 33 Terrain Rammed . | . . . Walls Destroyed . | . . . Machines Disabled . | . . . Actions | -11 -10 -10 --------- Run | Yrd Mat Min Total 715 | 58 529 128 Wait 14 | . 12 2 Move 608 | 46 448 114 Hop . | . . . Pick Up 26 | 7 16 3 Fast Attach . | . . . Attach 18 | 5 13 . Detach . | . . . Swap 2 | . 1 1 Drop 1 | . 1 . Fire 44 | . 38 6 Melee 2 | . . 2 Ram . | . . . Kick . | . . . Crush . | . . . Escape Stasis . | . . . Rewire . | . . . Trap . | . . . Miscellaneous . | . . . Route ------- -11/Scrapyard -10/Materials (discovered 2 exits: [*Mat] / [*Min]) -10/Mines History --------- Turn | Location | Event 27 | -11/Scrapyard | Discovered new exit (range 14) 53 | -11/Scrapyard | Entered Materials 205 | -10/Materials | Lost 3 parts (2n1u) 278 | -10/Materials | Core integrity fell below 50% 312 | -10/Materials | Build established: Mutant 318 | -10/Materials | Lost 6 parts (1p2n1u2w) 729 | -10/Materials | Discovered new exit (range 12) 793 | -10/Materials | Core integrity fell below 20% 960 | -10/Materials | Discovered new exit (range 12) 1060 | -10/Materials | Entered Mines 1190 | -10/Mines | Assembled infested the area 1195 | -10/Mines | Assisted by a Guerilla fighting off Assembled 1288 | -10/Mines | Lost 3 allies 1300 | -10/Mines | Destroyed by as-09517 with Assembled Heavy Rifle Last Messages --------------- come on!" PP-G7R(h) heat spikes uncontrollably. PP-G7R(h) heat damages Bore Cannon, Armor Integrity Analyzer, Flexi-carbon Leg. PP-G7R(h) critical meltdown. TS-F9N(g) destroyed. [Achievement: Backstab] X1-J7Q(z) destroyed. as-45226 destroyed. as-68209 destroyed. Destroyed Asb. Hover Unit. as-99164 system corrupted by crushing effect. as-99164 destroyed. The unstable cave ceiling collapses. as-07226 destroyed. Acquired 4 matter. Acquired Mak. Power Source. Acquired 21 matter. Acquired 33 matter. Acquired Carbon-fiber Leg. Map ----- +----------------------------------------------------+ | | | | | | | | | | | | | | | | | | | | | | | | | | | | | | | ?????????????????????????????????????????????????? | | ??????????????????????####???????????????????????? | | ?????????????????????## ###?????????????????????? | | ????????????????###### ###???????????????????? | | ???????????????## # #???????????????????? | | ???????????????# #???????????????????? | | ???????####????# #???????????????????? | | ??????## ###### ! ##??????????????????? | | ??????# ##?????????????????? | | ??????# # % ###???????????????? | | ?????## ## #### @ #?????????????? | | ????## #####?# #????????????? | | ???## ###?????### #????????????? | | ???# ##????????# #????????????? | | ???# #????????# %a ;#???????????? | | ???# ##???????# ??????????? | | ???# ### #????????# ??????????? | | ???# ### #????????## < #### ;#??????????? | | ???# #?????????## #???##% ;???????????? | | ???# #####??????????## #?????# ##???????????? | | ???# ##??????????????#%*#?????? #????????????? | | ???# #??????????????# #??????? #;????????????? | | ???# #??????????????# ????????? ??????????????? | | ??## ##?????????????# ????????????????????????? | | ### ###???????????###????????????????????????? | | # ##?????????????????????????????????????? | | """ ##????????????????????????????????????? | | """ ##???????????????????????????????????? | | # """ #???????????????????????????????????? | | # #??????????????????????????????????? | | # ## #?????????????????????????????????? | | # ##?#### #????????????????????????????????? | | ## #??????# #???????????????????????????????? | | ?# #??????? ???????????????????????????????? | | ?# #???????? ????????????????????????????????? | +----------------------------------------------------+ Best States ------------- Heat Dissipation 25 Energy Generation 10 Energy Capacity 250 Matter Stores 300 Matter Capacity 300 Sight Range 16 Terrain Scan Density 10 ECM Strength 1 Evasion (%) 50 Item Schematics ----------------- None Robot Schematics ------------------ None Fabricated ------------ Nothing Alien Tech Used ----------------- None Achievements -------------- Backstab Challenges ------------ None Game ------ Seed CloakForceNukerbomber Manual? 0 Play Time 00:16:10 Cumulative 2.9 hours Start 2024.04.01 @ 14:59:02 End 2024.04.01 @ 15:13:00 Sessions 1 Manual Loads 0 Difficulty Rogue Special Mode None Game No. 6 Rogue 6 Adventurer 0 Explorer 0 Win Type - Total 0 Types 0/0/0/0/0/0/0/0/0 Lore% 5 Gallery% 7 Achievement% 8 Wizard Run 0 Options --------- Layout 1 ASCII 0 Keyboard 0 Movement Mouse Keybinds 0 Fullscreen 1 Font 24/Smallcaps Map View 50x35 Zoom Use 0% Tactical HUD 0 Map Filters NONE Filters NONE Steam 1 RUN: 6f2d558d-ee71-457e-b368-305bc24903f5